[Event "Titled Tuesday Blitz December 06 Late 2022"]
[White "Rubio Tent, Francisco"]
[Black "Clawitter, Craig"]
[WhiteFideId "2238233"]
[BlackFideId "2023105"]
[WhiteElo "2211"]
[BlackElo "2190"]
[Result "1-0"]
[Round "04"]
[TimeControl "180+1"]
[Date "2022.12.07"]
[WhiteClock "0:00:51"]
[BlackClock "0:00:01"]

1. e4 {[%clk 0:02:59]}  e6 {[%clk 0:03:00]} 2. b3 {[%clk 0:02:58]}  d5 {[%clk 0:02:59]} 3. Bb2 {[%clk 0:02:59]}  Nf6 {[%clk 0:02:59]} 4. e5 {[%clk 0:02:58]}  Nfd7 {[%clk 0:02:59]} 5. d4 {[%clk 0:02:57]}  c5 {[%clk 0:03:00]} 6. c3 {[%clk 0:02:57]}  Nc6 {[%clk 0:03:00]} 7. Nf3 {[%clk 0:02:57]}  Be7 {[%clk 0:02:55]} 8. Be2 {[%clk 0:02:57]}  O-O {[%clk 0:02:54]} 9. O-O {[%clk 0:02:56]}  a5 {[%clk 0:02:47]} 10. a3 {[%clk 0:02:49]}  f6 {[%clk 0:02:23]} 11. c4 {[%clk 0:02:36]}  cxd4 {[%clk 0:02:05]} 12. cxd5 {[%clk 0:02:33]}  Ncxe5 {[%clk 0:01:58]} 13. Nxd4 {[%clk 0:02:24]}  Nc5 {[%clk 0:01:49]} 14. dxe6 {[%clk 0:02:15]}  Nxe6 {[%clk 0:01:40]} 15. Nf5 {[%clk 0:02:03]}  Bc5 {[%clk 0:01:26]} 16. Qc2 {[%clk 0:01:52]}  Kh8 {[%clk 0:00:36]} 17. Rd1 {[%clk 0:01:45]}  Qb6 {[%clk 0:00:35]} 18. Bf1 {[%clk 0:01:29]}  Nf4 {[%clk 0:00:27]} 19. Ng3 {[%clk 0:01:19]}  Bg4 {[%clk 0:00:24]} 20. Rc1 {[%clk 0:01:04]}  Rac8 {[%clk 0:00:23]} 21. Nc3 {[%clk 0:01:04]}  Rfd8 {[%clk 0:00:14]} 22. Na4 {[%clk 0:01:04]}  Qa7 {[%clk 0:00:05]} 23. Nxc5 {[%clk 0:01:02]}  b6 {[%clk 0:00:06]} 24. Qe4 {[%clk 0:00:54]}  Rxc5 {[%clk 0:00:01]} 25. Qxf4 {[%clk 0:00:51]} 1-0


[Site "https://www.chess.com"]

[Event "Titled Tuesday Blitz December 06 Late 2022"]
[White "Sanchez, Robert"]
[Black "Floresvillar Gonzalez, Luis Migu"]
[WhiteFideId "2034360"]
[BlackFideId "5100542"]
[WhiteElo "2339"]
[BlackElo "2040"]
[Result "1-0"]
[Round "04"]
[TimeControl "180+1"]
[Date "2022.12.07"]
[WhiteClock "0:00:41"]
[BlackClock "0:00:16"]

1. e4 {[%clk 0:03:00]}  c6 {[%clk 0:02:58]} 2. d4 {[%clk 0:03:00]}  d5 {[%clk 0:02:57]} 3. e5 {[%clk 0:03:01]}  Bf5 {[%clk 0:02:56]} 4. Nf3 {[%clk 0:03:02]}  e6 {[%clk 0:02:55]} 5. Be2 {[%clk 0:03:02]}  c5 {[%clk 0:02:55]} 6. O-O {[%clk 0:03:02]}  Nc6 {[%clk 0:02:54]} 7. c3 {[%clk 0:03:02]}  Nge7 {[%clk 0:02:50]} 8. dxc5 {[%clk 0:03:01]}  Ng6 {[%clk 0:02:50]} 9. Bb5 {[%clk 0:02:59]}  Bxc5 {[%clk 0:02:46]} 10. b4 {[%clk 0:02:56]}  Be7 {[%clk 0:02:44]} 11. Re1 {[%clk 0:02:55]}  O-O {[%clk 0:02:44]} 12. h3 {[%clk 0:02:55]}  Qc7 {[%clk 0:02:36]} 13. Bxc6 {[%clk 0:02:45]}  bxc6 {[%clk 0:02:34]} 14. Nbd2 {[%clk 0:02:39]}  Bd3 {[%clk 0:02:30]} 15. Nb3 {[%clk 0:02:37]}  Bc4 {[%clk 0:02:26]} 16. Nbd4 {[%clk 0:02:35]}  c5 {[%clk 0:02:24]} 17. bxc5 {[%clk 0:02:34]}  Qxc5 {[%clk 0:02:22]} 18. a4 {[%clk 0:02:31]}  Rab8 {[%clk 0:02:18]} 19. Ba3 {[%clk 0:02:28]}  Qc7 {[%clk 0:02:16]} 20. Bxe7 {[%clk 0:02:28]}  Qxe7 {[%clk 0:02:13]} 21. Nc6 {[%clk 0:02:27]}  Qd7 {[%clk 0:02:07]} 22. Nxb8 {[%clk 0:02:28]}  Rxb8 {[%clk 0:02:07]} 23. Qd4 {[%clk 0:02:15]}  h6 {[%clk 0:01:58]} 24. h4 {[%clk 0:01:59]}  a6 {[%clk 0:01:54]} 25. Nd2 {[%clk 0:01:50]}  Rc8 {[%clk 0:01:43]} 26. h5 {[%clk 0:01:47]}  Ne7 {[%clk 0:01:41]} 27. Reb1 {[%clk 0:01:42]}  Nf5 {[%clk 0:01:40]} 28. Qb6 {[%clk 0:01:39]}  Bd3 {[%clk 0:01:36]} 29. Rb3 {[%clk 0:01:35]}  Bc2 {[%clk 0:01:30]} 30. Rba3 {[%clk 0:01:28]}  Rc6 {[%clk 0:01:26]} 31. Qb8+ {[%clk 0:01:28]}  Rc8 {[%clk 0:01:22]} 32. Qb4 {[%clk 0:01:23]}  Kh7 {[%clk 0:01:15]} 33. R3a2 {[%clk 0:01:16]}  Bd3 {[%clk 0:01:04]} 34. g4 {[%clk 0:01:01]}  Ne7 {[%clk 0:00:56]} 35. Qd4 {[%clk 0:00:59]}  Bc4 {[%clk 0:00:51]} 36. Rb2 {[%clk 0:00:52]}  Nc6 {[%clk 0:00:49]} 37. Qf4 {[%clk 0:00:52]}  Qc7 {[%clk 0:00:43]} 38. Nxc4 {[%clk 0:00:50]}  dxc4 {[%clk 0:00:42]} 39. Re1 {[%clk 0:00:49]}  Na5 {[%clk 0:00:38]} 40. Qe4+ {[%clk 0:00:46]}  Kg8 {[%clk 0:00:36]} 41. Rd2 {[%clk 0:00:45]}  Nb3 {[%clk 0:00:34]} 42. Rd6 {[%clk 0:00:44]}  a5 {[%clk 0:00:19]} 43. Red1 {[%clk 0:00:42]}  Qc5 {[%clk 0:00:16]} 44. Rd8+ {[%clk 0:00:41]} 1-0


[Site "https://www.chess.com"]

[Event "Titled Tuesday Blitz December 06 Late 2022"]
[White "Sargsyan, Anna M."]
[Black "Yeritsyan, Hayk"]
[WhiteFideId "13308130"]
[BlackFideId "13307320"]
[WhiteElo "2284"]
[BlackElo "2419"]
[Result "1-0"]
[Round "04"]
[TimeControl "180+1"]
[Date "2022.12.07"]
[WhiteClock "0:00:15"]
[BlackClock "0:00:05"]

1. d4 {[%clk 0:02:53]}  d5 {[%clk 0:02:58]} 2. c4 {[%clk 0:02:53]}  c6 {[%clk 0:02:58]} 3. cxd5 {[%clk 0:02:44]}  cxd5 {[%clk 0:02:59]} 4. Nc3 {[%clk 0:02:44]}  Nc6 {[%clk 0:02:59]} 5. Nf3 {[%clk 0:02:43]}  Nf6 {[%clk 0:02:59]} 6. Bf4 {[%clk 0:02:43]}  e6 {[%clk 0:02:57]} 7. e3 {[%clk 0:02:41]}  Bd6 {[%clk 0:02:56]} 8. Bb5 {[%clk 0:02:42]}  Bxf4 {[%clk 0:02:55]} 9. exf4 {[%clk 0:02:43]}  O-O {[%clk 0:02:55]} 10. O-O {[%clk 0:02:43]}  Bd7 {[%clk 0:02:54]} 11. Bxc6 {[%clk 0:02:43]}  Bxc6 {[%clk 0:02:51]} 12. Ne5 {[%clk 0:02:43]}  Nd7 {[%clk 0:02:51]} 13. Rc1 {[%clk 0:02:39]}  Nxe5 {[%clk 0:02:51]} 14. fxe5 {[%clk 0:02:40]}  Rc8 {[%clk 0:02:51]} 15. f4 {[%clk 0:02:40]}  f5 {[%clk 0:02:51]} 16. exf6 {[%clk 0:02:35]}  Qxf6 {[%clk 0:02:50]} 17. Qd2 {[%clk 0:02:32]}  Rc7 {[%clk 0:02:42]} 18. Rce1 {[%clk 0:02:31]}  Rcf7 {[%clk 0:02:40]} 19. g3 {[%clk 0:02:29]}  h6 {[%clk 0:02:32]} 20. Qe3 {[%clk 0:02:24]}  a5 {[%clk 0:01:55]} 21. Rf2 {[%clk 0:02:06]}  g5 {[%clk 0:01:47]} 22. Ref1 {[%clk 0:02:05]}  Qg6 {[%clk 0:01:40]} 23. fxg5 {[%clk 0:02:03]}  Rxf2 {[%clk 0:01:39]} 24. Rxf2 {[%clk 0:02:03]}  Rxf2 {[%clk 0:01:38]} 25. Kxf2 {[%clk 0:02:02]}  hxg5 {[%clk 0:01:37]} 26. g4 {[%clk 0:01:46]}  Kf7 {[%clk 0:01:34]} 27. Kg3 {[%clk 0:01:45]}  Qf6 {[%clk 0:01:29]} 28. Ne2 {[%clk 0:01:35]}  Qh6 {[%clk 0:01:13]} 29. h3 {[%clk 0:01:24]}  Qh4+ {[%clk 0:01:04]} 30. Kg2 {[%clk 0:01:22]}  Qe1 {[%clk 0:00:51]} 31. Qf3+ {[%clk 0:01:11]}  Kg7 {[%clk 0:00:47]} 32. Qd3 {[%clk 0:01:02]}  e5 {[%clk 0:00:35]} 33. Qe3 {[%clk 0:01:01]}  exd4 {[%clk 0:00:15]} 34. Qxg5+ {[%clk 0:01:01]}  Kh7 {[%clk 0:00:14]} 35. Qf5+ {[%clk 0:00:51]}  Kg7 {[%clk 0:00:15]} 36. Nxd4 {[%clk 0:00:48]}  Qd2+ {[%clk 0:00:15]} 37. Qf2 {[%clk 0:00:48]}  Qxf2+ {[%clk 0:00:09]} 38. Kxf2 {[%clk 0:00:49]}  Kf6 {[%clk 0:00:09]} 39. h4 {[%clk 0:00:37]}  Ke5 {[%clk 0:00:09]} 40. Nxc6+ {[%clk 0:00:19]}  bxc6 {[%clk 0:00:10]} 41. Ke3 {[%clk 0:00:16]}  c5 {[%clk 0:00:10]} 42. b3 {[%clk 0:00:16]}  d4+ {[%clk 0:00:08]} 43. Kd3 {[%clk 0:00:16]}  Kf4 {[%clk 0:00:08]} 44. h5 {[%clk 0:00:16]}  Kg5 {[%clk 0:00:08]} 45. a3 {[%clk 0:00:16]}  Kh6 {[%clk 0:00:07]} 46. b4 {[%clk 0:00:15]}  cxb4 {[%clk 0:00:04]} 47. axb4 {[%clk 0:00:15]}  axb4 {[%clk 0:00:02]} 48. Kxd4 {[%clk 0:00:16]}  Kg5 {[%clk 0:00:03]} 49. Kc4 {[%clk 0:00:16]}  b3 {[%clk 0:00:03]} 50. Kxb3 {[%clk 0:00:14]}  Kxg4 {[%clk 0:00:04]} 51. h6 {[%clk 0:00:14]}  Kg5 {[%clk 0:00:05]} 52. h7 {[%clk 0:00:15]} 1-0


[Site "https://www.chess.com"]

[Event "Titled Tuesday Blitz December 06 Late 2022"]
[White "Seletsky, Grigory"]
[Black "Martinez Reyes, Pedro Ramon"]
[WhiteFideId "14112191"]
[BlackFideId "3901807"]
[WhiteElo "2492"]
[BlackElo "2354"]
[Result "0-1"]
[Round "04"]
[TimeControl "180+1"]
[Date "2022.12.07"]
[WhiteClock "0:01:59"]
[BlackClock "0:01:44"]

1. e4 {[%clk 0:03:00]}  Nf6 {[%clk 0:02:56]} 2. d3 {[%clk 0:02:55]}  d5 {[%clk 0:02:53]} 3. Nd2 {[%clk 0:02:55]}  e5 {[%clk 0:02:52]} 4. Ngf3 {[%clk 0:02:56]}  Nc6 {[%clk 0:02:52]} 5. Be2 {[%clk 0:02:56]}  Bc5 {[%clk 0:02:52]} 6. O-O {[%clk 0:02:56]}  a5 {[%clk 0:02:52]} 7. c3 {[%clk 0:02:56]}  O-O {[%clk 0:02:52]} 8. b3 {[%clk 0:02:55]}  d4 {[%clk 0:02:51]} 9. Bb2 {[%clk 0:02:52]}  dxc3 {[%clk 0:02:51]} 10. Bxc3 {[%clk 0:02:52]}  Re8 {[%clk 0:02:51]} 11. a3 {[%clk 0:02:51]}  Bg4 {[%clk 0:02:50]} 12. h3 {[%clk 0:02:50]}  Bxf3 {[%clk 0:02:50]} 13. Nxf3 {[%clk 0:02:49]}  Qe7 {[%clk 0:02:51]} 14. Bb2 {[%clk 0:02:47]}  Rad8 {[%clk 0:02:49]} 15. Qc2 {[%clk 0:02:47]}  Bd4 {[%clk 0:02:49]} 16. Nxd4 {[%clk 0:02:41]}  Nxd4 {[%clk 0:02:50]} 17. Bxd4 {[%clk 0:02:41]}  Rxd4 {[%clk 0:02:51]} 18. Rfc1 {[%clk 0:02:36]}  c6 {[%clk 0:02:51]} 19. Qc5 {[%clk 0:02:36]}  Qc7 {[%clk 0:02:35]} 20. b4 {[%clk 0:02:36]}  axb4 {[%clk 0:02:36]} 21. axb4 {[%clk 0:02:36]}  Nd7 {[%clk 0:02:33]} 22. Qc3 {[%clk 0:02:33]}  Qb6 {[%clk 0:02:31]} 23. Rcb1 {[%clk 0:02:32]}  Nf8 {[%clk 0:02:30]} 24. Qc5 {[%clk 0:02:28]}  Qxc5 {[%clk 0:02:26]} 25. bxc5 {[%clk 0:02:29]}  Rd7 {[%clk 0:02:27]} 26. Ra7 {[%clk 0:02:24]}  Ne6 {[%clk 0:02:26]} 27. Bg4 {[%clk 0:02:22]}  h5 {[%clk 0:01:56]} 28. Bxe6 {[%clk 0:02:21]}  Rxe6 {[%clk 0:01:57]} 29. Rbxb7 {[%clk 0:02:20]}  Rxd3 {[%clk 0:01:52]} 30. Rxf7 {[%clk 0:02:18]}  Rg6 {[%clk 0:01:53]} 31. Rf5 {[%clk 0:02:13]}  Rd1+ {[%clk 0:01:49]} 32. Kh2 {[%clk 0:02:12]}  Rd2 {[%clk 0:01:50]} 33. Re7 {[%clk 0:02:10]}  h4 {[%clk 0:01:48]} 34. Rexe5 {[%clk 0:02:10]}  Rc2 {[%clk 0:01:47]} 35. f3 {[%clk 0:01:59]}  Rcxg2+ {[%clk 0:01:44]} 0-1


[Site "https://www.chess.com"]

[Event "Titled Tuesday Blitz December 06 Late 2022"]
[White "Shohat, Yotam"]
[Black "Barria Zuniga, Daniel"]
[WhiteFideId "2813955"]
[BlackFideId "3400816"]
[WhiteElo "2405"]
[BlackElo "2664"]
[Result "1-0"]
[Round "04"]
[TimeControl "180+1"]
[Date "2022.12.07"]
[WhiteClock "0:00:10"]
[BlackClock "0:00:26"]

1. e4 {[%clk 0:03:00]}  c5 {[%clk 0:02:55]} 2. Nf3 {[%clk 0:02:49]}  Nc6 {[%clk 0:02:55]} 3. Bb5 {[%clk 0:02:48]}  a6 {[%clk 0:02:53]} 4. Bxc6 {[%clk 0:02:47]}  bxc6 {[%clk 0:02:54]} 5. O-O {[%clk 0:02:46]}  e6 {[%clk 0:02:54]} 6. c4 {[%clk 0:02:44]}  Ne7 {[%clk 0:02:53]} 7. Nc3 {[%clk 0:02:43]}  Ng6 {[%clk 0:02:53]} 8. d3 {[%clk 0:02:36]}  Be7 {[%clk 0:02:52]} 9. e5 {[%clk 0:02:34]}  O-O {[%clk 0:02:50]} 10. Be3 {[%clk 0:02:09]}  Qc7 {[%clk 0:02:35]} 11. d4 {[%clk 0:02:03]}  cxd4 {[%clk 0:02:35]} 12. Qxd4 {[%clk 0:02:03]}  c5 {[%clk 0:02:34]} 13. Qg4 {[%clk 0:01:51]}  Nxe5 {[%clk 0:02:24]} 14. Nxe5 {[%clk 0:01:47]}  Qxe5 {[%clk 0:02:25]} 15. Bf4 {[%clk 0:01:45]}  Qd4 {[%clk 0:02:18]} 16. Qg3 {[%clk 0:01:34]}  Qxc4 {[%clk 0:02:16]} 17. Rac1 {[%clk 0:01:33]}  f6 {[%clk 0:02:06]} 18. Rfd1 {[%clk 0:01:26]}  Qb4 {[%clk 0:01:22]} 19. a3 {[%clk 0:01:16]}  Qb3 {[%clk 0:01:11]} 20. Nd5 {[%clk 0:01:11]}  Qxg3 {[%clk 0:01:08]} 21. Nxe7+ {[%clk 0:01:11]}  Kf7 {[%clk 0:01:08]} 22. Bxg3 {[%clk 0:01:08]}  Rd8 {[%clk 0:01:01]} 23. Nc6 {[%clk 0:00:54]}  Re8 {[%clk 0:01:01]} 24. Na5 {[%clk 0:00:54]}  e5 {[%clk 0:00:50]} 25. Rxc5 {[%clk 0:00:46]}  Ke6 {[%clk 0:00:49]} 26. Nc4 {[%clk 0:00:40]}  Rb8 {[%clk 0:00:45]} 27. Rd6+ {[%clk 0:00:37]}  Ke7 {[%clk 0:00:44]} 28. b4 {[%clk 0:00:36]}  Rb5 {[%clk 0:00:43]} 29. f4 {[%clk 0:00:33]}  Rxc5 {[%clk 0:00:37]} 30. bxc5 {[%clk 0:00:34]}  e4 {[%clk 0:00:38]} 31. Rb6 {[%clk 0:00:28]}  g6 {[%clk 0:00:24]} 32. f5 {[%clk 0:00:28]}  gxf5 {[%clk 0:00:23]} 33. Nd6 {[%clk 0:00:21]}  Rg8 {[%clk 0:00:21]} 34. Rb8 {[%clk 0:00:19]}  Ke6 {[%clk 0:00:19]} 35. Rxc8 {[%clk 0:00:15]}  Rxc8 {[%clk 0:00:18]} 36. Nxc8 {[%clk 0:00:15]}  Kd5 {[%clk 0:00:18]} 37. Bd6 {[%clk 0:00:14]}  e3 {[%clk 0:00:18]} 38. Kf1 {[%clk 0:00:14]}  Ke4 {[%clk 0:00:17]} 39. Ke2 {[%clk 0:00:12]}  f4 {[%clk 0:00:18]} 40. Nb6 {[%clk 0:00:09]}  h5 {[%clk 0:00:18]} 41. Nxd7 {[%clk 0:00:09]}  h4 {[%clk 0:00:19]} 42. h3 {[%clk 0:00:09]}  f5 {[%clk 0:00:17]} 43. Nf6+ {[%clk 0:00:08]}  Kd4 {[%clk 0:00:18]} 44. Bxf4 {[%clk 0:00:07]}  Kxc5 {[%clk 0:00:18]} 45. Kxe3 {[%clk 0:00:08]}  Kb5 {[%clk 0:00:18]} 46. Bd6 {[%clk 0:00:08]}  Ka4 {[%clk 0:00:19]} 47. Kf4 {[%clk 0:00:07]}  a5 {[%clk 0:00:20]} 48. Kxf5 {[%clk 0:00:07]}  Kb3 {[%clk 0:00:21]} 49. Kg4 {[%clk 0:00:08]}  a4 {[%clk 0:00:22]} 50. Kxh4 {[%clk 0:00:08]}  Kc4 {[%clk 0:00:22]} 51. Bb4 {[%clk 0:00:08]}  Kb3 {[%clk 0:00:23]} 52. g4 {[%clk 0:00:09]}  Kc4 {[%clk 0:00:24]} 53. g5 {[%clk 0:00:10]}  Kb3 {[%clk 0:00:25]} 54. g6 {[%clk 0:00:10]}  Kc4 {[%clk 0:00:26]} 55. g7 {[%clk 0:00:11]}  Kb3 {[%clk 0:00:27]} 56. g8=Q+ {[%clk 0:00:11]}  Kb2 {[%clk 0:00:27]} 57. Qg2+ {[%clk 0:00:11]}  Kb1 {[%clk 0:00:26]} 58. Qd2 {[%clk 0:00:10]}  Ka1 {[%clk 0:00:26]} 59. Bc3+ {[%clk 0:00:10]} 1-0


[Site "https://www.chess.com"]

[Event "Titled Tuesday Blitz December 06 Late 2022"]
[White "Souleidis, Georgios"]
[Black "Sarana, Alexey"]
[WhiteFideId "4206827"]
[BlackFideId "24133795"]
[WhiteElo "2401"]
[BlackElo "2708"]
[Result "0-1"]
[Round "04"]
[TimeControl "180+1"]
[Date "2022.12.06"]
[WhiteClock "0:00:13"]
[BlackClock "0:00:55"]

1. e4 {[%clk 0:03:00]}  c5 {[%clk 0:03:00]} 2. Be2 {[%clk 0:03:01]}  d6 {[%clk 0:03:00]} 3. d3 {[%clk 0:03:01]}  Nc6 {[%clk 0:03:00]} 4. f4 {[%clk 0:03:01]}  g6 {[%clk 0:03:00]} 5. Nf3 {[%clk 0:03:02]}  Bg7 {[%clk 0:03:01]} 6. O-O {[%clk 0:03:03]}  e6 {[%clk 0:03:02]} 7. c3 {[%clk 0:03:03]}  Nge7 {[%clk 0:03:01]} 8. Be3 {[%clk 0:03:04]}  f5 {[%clk 0:03:00]} 9. Nbd2 {[%clk 0:02:54]}  O-O {[%clk 0:02:59]} 10. a3 {[%clk 0:02:52]}  b6 {[%clk 0:02:59]} 11. Qb3 {[%clk 0:02:50]}  Qd7 {[%clk 0:02:58]} 12. Rad1 {[%clk 0:02:49]}  Kh8 {[%clk 0:02:57]} 13. Kh1 {[%clk 0:02:47]}  Bb7 {[%clk 0:02:56]} 14. Ng5 {[%clk 0:02:42]}  d5 {[%clk 0:02:54]} 15. e5 {[%clk 0:02:27]}  h6 {[%clk 0:02:49]} 16. Ngf3 {[%clk 0:02:12]}  d4 {[%clk 0:02:49]} 17. cxd4 {[%clk 0:02:06]}  cxd4 {[%clk 0:02:50]} 18. Bf2 {[%clk 0:02:06]}  Nd5 {[%clk 0:02:50]} 19. g3 {[%clk 0:02:03]}  Ne3 {[%clk 0:02:49]} 20. Nc4 {[%clk 0:01:44]}  Nxd1 {[%clk 0:02:31]} 21. Rxd1 {[%clk 0:01:43]}  Na5 {[%clk 0:02:31]} 22. Nxa5 {[%clk 0:01:42]}  bxa5 {[%clk 0:02:32]} 23. Kg1 {[%clk 0:01:42]}  Bd5 {[%clk 0:02:30]} 24. Qc2 {[%clk 0:01:40]}  Rfc8 {[%clk 0:02:30]} 25. Qd2 {[%clk 0:01:40]}  Qb7 {[%clk 0:02:26]} 26. Nxd4 {[%clk 0:01:38]}  Bf8 {[%clk 0:02:26]} 27. Rc1 {[%clk 0:00:50]}  Rxc1+ {[%clk 0:02:24]} 28. Qxc1 {[%clk 0:00:51]}  Rc8 {[%clk 0:02:25]} 29. Qd2 {[%clk 0:00:47]}  a4 {[%clk 0:02:25]} 30. Bf1 {[%clk 0:00:42]}  Bc5 {[%clk 0:02:24]} 31. h4 {[%clk 0:00:32]}  h5 {[%clk 0:02:23]} 32. Qa5 {[%clk 0:00:26]}  Qxb2 {[%clk 0:02:17]} 33. Qxa4 {[%clk 0:00:25]}  Qb6 {[%clk 0:01:47]} 34. Bg2 {[%clk 0:00:15]}  Bxg2 {[%clk 0:00:56]} 35. Kxg2 {[%clk 0:00:16]}  Rd8 {[%clk 0:00:56]} 36. Nxe6 {[%clk 0:00:13]}  Qxe6 {[%clk 0:00:55]} 37. Bxc5 {[%clk 0:00:13]}  Qd5+ {[%clk 0:00:55]} 0-1


[Site "https://www.chess.com"]

[Event "Titled Tuesday Blitz December 06 Late 2022"]
[White "Spyropoulos, Nikolaos"]
[Black "Yuan, Qingyu"]
[WhiteFideId "4298977"]
[BlackFideId "8609772"]
[WhiteElo "2554"]
[BlackElo "2714"]
[Result "0-1"]
[Round "04"]
[TimeControl "180+1"]
[Date "2022.12.07"]
[WhiteClock "0:00:01"]
[BlackClock "0:00:38"]

1. e4 {[%clk 0:02:58]}  e5 {[%clk 0:03:00]} 2. Nf3 {[%clk 0:02:55]}  Nc6 {[%clk 0:03:00]} 3. Bc4 {[%clk 0:02:53]}  Bc5 {[%clk 0:03:00]} 4. Nc3 {[%clk 0:02:53]}  Nf6 {[%clk 0:03:01]} 5. d3 {[%clk 0:02:52]}  a6 {[%clk 0:03:00]} 6. O-O {[%clk 0:02:46]}  h6 {[%clk 0:02:55]} 7. Ne2 {[%clk 0:02:18]}  O-O {[%clk 0:02:53]} 8. c3 {[%clk 0:02:18]}  d5 {[%clk 0:02:52]} 9. exd5 {[%clk 0:02:17]}  Nxd5 {[%clk 0:02:53]} 10. Ng3 {[%clk 0:02:17]}  Re8 {[%clk 0:02:26]} 11. Re1 {[%clk 0:02:11]}  Nb6 {[%clk 0:02:15]} 12. Bb3 {[%clk 0:01:59]}  Be6 {[%clk 0:02:08]} 13. Bxe6 {[%clk 0:01:29]}  Rxe6 {[%clk 0:02:07]} 14. b4 {[%clk 0:01:16]}  Bf8 {[%clk 0:02:04]} 15. a3 {[%clk 0:01:14]}  Qd7 {[%clk 0:01:57]} 16. c4 {[%clk 0:00:54]}  Rd8 {[%clk 0:01:53]} 17. c5 {[%clk 0:00:53]}  Nd5 {[%clk 0:01:50]} 18. Bb2 {[%clk 0:00:45]}  Nf4 {[%clk 0:01:36]} 19. Nxe5 {[%clk 0:00:38]}  Nxe5 {[%clk 0:01:31]} 20. Rxe5 {[%clk 0:00:36]}  Qxd3 {[%clk 0:01:15]} 21. Qxd3 {[%clk 0:00:30]}  Rxd3 {[%clk 0:01:14]} 22. Rxe6 {[%clk 0:00:29]}  Nxe6 {[%clk 0:01:13]} 23. Kf1 {[%clk 0:00:17]}  Rb3 {[%clk 0:01:12]} 24. Ra2 {[%clk 0:00:06]}  a5 {[%clk 0:01:11]} 25. bxa5 {[%clk 0:00:02]}  Nxc5 {[%clk 0:01:11]} 26. Bd4 {[%clk 0:00:01]}  Na4 {[%clk 0:01:07]} 27. Rc2 {[%clk 0:00:02]}  c6 {[%clk 0:01:05]} 28. Be3 {[%clk 0:00:02]}  Bxa3 {[%clk 0:01:03]} 29. Ne4 {[%clk 0:00:03]}  Bb4 {[%clk 0:01:03]} 30. a6 {[%clk 0:00:01]}  bxa6 {[%clk 0:01:01]} 31. Rxc6 {[%clk 0:00:02]}  a5 {[%clk 0:00:59]} 32. Rc8+ {[%clk 0:00:03]}  Kh7 {[%clk 0:00:59]} 33. g3 {[%clk 0:00:04]}  Nc3 {[%clk 0:00:58]} 34. Nxc3 {[%clk 0:00:02]}  Rxc3 {[%clk 0:00:58]} 35. Ra8 {[%clk 0:00:03]}  Rc2 {[%clk 0:00:55]} 36. Kg2 {[%clk 0:00:03]}  h5 {[%clk 0:00:54]} 37. h3 {[%clk 0:00:03]}  f6 {[%clk 0:00:54]} 38. g4 {[%clk 0:00:03]}  Kg6 {[%clk 0:00:54]} 39. Rh8 {[%clk 0:00:02]}  hxg4 {[%clk 0:00:54]} 40. hxg4 {[%clk 0:00:02]}  Rc4 {[%clk 0:00:54]} 41. Ra8 {[%clk 0:00:02]}  Rxg4+ {[%clk 0:00:54]} 42. Kf3 {[%clk 0:00:03]}  Rc4 {[%clk 0:00:55]} 43. Ra7 {[%clk 0:00:02]}  Rc3 {[%clk 0:00:54]} 44. Ke4 {[%clk 0:00:02]}  Rc2 {[%clk 0:00:51]} 45. Kd5 {[%clk 0:00:02]}  Be1 {[%clk 0:00:49]} 46. f4 {[%clk 0:00:01]}  Bf2 {[%clk 0:00:43]} 47. f5+ {[%clk 0:00:02]}  Kxf5 {[%clk 0:00:43]} 48. Bxf2 {[%clk 0:00:02]}  Rxf2 {[%clk 0:00:42]} 49. Rxg7 {[%clk 0:00:03]}  Rd2+ {[%clk 0:00:40]} 50. Kc4 {[%clk 0:00:02]}  Re2 {[%clk 0:00:37]} 51. Rg2 {[%clk 0:00:01]}  Rxg2 {[%clk 0:00:38]} 0-1


[Site "https://www.chess.com"]